bitfinex/quotes_BTCUSD_20251114
["timestamp","ask_amount","ask_price","bid_price","bid_amount"]
[1763129974135,0.02736,95741.0,95740.0,1.12109421]
[1763129974349,0.0495,95759.0,95752.0,0.20887087]
[1763129974579,0.0495,95759.0,95755.0,0.20886467]
[1763129974813,0.01,95750.0,95745.0,0.20888744]
[1763129975039,0.01,95750.0,95735.0,0.00013576]
[1763129975040,0.20887946,95749.0,95735.0,0.00013576]
[1763129975261,0.0495,95736.0,95735.0,0.20904577]
[1763129975470,0.0495,95736.0,95735.0,0.16904577]
[1763129976148,0.01,95730.0,95729.0,0.2089231]
[1763129976361,0.0504,95743.0,95729.0,0.00013581]
[1763129976562,0.02236,95730.0,95729.0,0.00013581]
[1763129976980,0.02736,95739.0,95738.0,0.20890346]
[1763129977186,0.04977,95739.0,95737.0,0.20890553]
[1763129977407,0.00022,95738.0,95737.0,0.20890553]
[1763129978577,0.00022,95738.0,95735.0,0.20890927]
[1763129978812,0.02836,95739.0,95738.0,0.20890346]
[1763129978973,0.02736,95739.0,95738.0,0.20890346]
[1763129979175,0.04977,95739.0,95738.0,0.20890346]
[1763129979381,0.04977,95739.0,95729.0,0.00013581]
[1763129979585,0.0495,95738.0,95735.0,0.20890547]
[1763129979787,0.0495,95738.0,95730.0,0.91219511]
[1763129979964,0.0495,95745.0,95743.0,0.20889097]
[1763129980166,0.001,95739.0,95737.0,0.20890359]
[1763129980387,0.001,95738.0,95737.0,0.20890359]
[1763129980738,0.00049,95738.0,95737.0,0.20890359]
[1763129980925,0.00049,95738.0,95736.0,0.20890635]
[1763129981073,0.001,95739.0,95735.0,0.20890959]
[1763129981276,0.00049,95738.0,95735.0,0.20890959]
[1763129981479,0.04901,95736.0,95732.0,0.20891543]
[1763129981830,0.00249,95738.0,95731.0,0.20891787]
[1763129982034,0.00249,95738.0,95736.0,0.20890661]
[1763129982227,0.002,95738.0,95736.0,0.20890661]
[1763129982460,0.04999,95737.0,95736.0,0.20890661]
[1763129982667,0.04999,95737.0,95736.0,0.14190661]
[1763129983060,0.04999,95737.0,95735.0,0.20890757]
[1763129983245,0.00049,95736.0,95735.0,0.20890757]
[1763129983447,0.00149,95736.0,95735.0,0.20890757]
[1763129983650,0.00149,95736.0,95729.0,0.00013581]
[1763129983856,0.001,95736.0,95730.0,0.20892005]
[1763129984034,0.25840585,95737.0,95729.0,0.00013581]
[1763129984237,0.00049,95730.0,95729.0,0.00013581]
[1763129984436,0.00049,95730.0,95729.0,0.20905891]
[1763129985286,0.01049,95730.0,95729.0,0.20905891]
[1763129986528,0.01049,95730.0,95729.0,0.20909891]
[1763129987068,0.01,95730.0,95729.0,0.20913891]
[1763129987557,0.20884474,95765.0,95752.0,0.20887292]
[1763129987721,0.0495,95758.0,95747.0,0.20888205]
[1763129987926,0.00049,95752.0,95743.0,0.91262309]
[1763129988102,0.00049,95752.0,95751.0,0.2088751]
[1763129988706,0.00049,95752.0,95749.0,0.20887763]
[1763129988887,0.00049,95750.0,95749.0,0.20887946]
[1763129989709,0.00049,95750.0,95749.0,0.13087946]
[1763129989908,0.00049,95750.0,95742.0,0.62202959]
[1763129990111,0.0495,95743.0,95740.0,0.62202959]
[1763129990371,0.10479654,95746.0,95734.0,0.20891149]
[1763129990586,0.10479654,95746.0,95735.0,0.20890968]
[1763129990587,0.20937819,95745.0,95735.0,0.20890968]
[1763129990785,0.20889283,95743.0,95736.0,0.20890748]
[1763129990990,0.0495,95744.0,95743.0,0.20889255]
[1763129991196,0.01638055,95777.0,95743.0,0.20889255]
[1763129991197,0.001,95750.0,95749.0,0.20887946]
[1763129991428,0.0495,95755.0,95750.0,0.20887536]
[1763129991634,0.00049,95750.0,95743.0,0.58652083]
[1763129991848,0.00049,95744.0,95734.0,4e-05]
[1763129992056,0.00049,95741.0,95734.0,0.58656083]
[1763129992254,0.20888666,95746.0,95738.0,0.20890189]
[1763129992694,0.00049,95739.0,95734.0,0.58660083]
[1763129992842,0.2098938,95743.0,95735.0,0.20890982]
[1763129993248,0.00049,95736.0,95735.0,0.20890982]
[1763129993690,0.00049,95736.0,95735.0,0.21090325]
[1763129994550,0.00049,95736.0,95735.0,0.00199343]
[1763129995821,0.20894493,95719.0,95711.0,0.03675915]
[1763129995976,0.20898123,95703.0,95700.0,0.58652083]
[1763129996175,0.20898258,95702.0,95700.0,0.00045285]
[1763129996376,0.02545,95701.0,95700.0,0.00045285]
[1763129996802,0.02545,95701.0,95693.0,0.50897368]
[1763129997016,0.02545,95701.0,95693.0,0.5091097]
[1763129997260,0.02545,95701.0,95697.0,0.20899174]
[1763129997460,0.02545,95701.0,95695.0,0.20899592]
[1763129997772,0.02545,95701.0,95693.0,0.5091097]
[1763129997983,0.001,95701.0,95699.0,0.20898823]
[1763129998196,0.001,95701.0,95700.0,0.28261164]
[1763129998395,0.0495,95733.0,95719.0,0.20894359]
[1763129998598,0.0495,95733.0,95720.0,0.5870899]
[1763129998810,0.0495,95733.0,95724.0,0.20893245]
[1763129998987,0.01,95730.0,95720.0,0.5870899]
[1763129999222,0.10479654,95736.0,95729.0,0.2089231]
[1763129999429,0.10479654,95736.0,95720.0,0.5870899]
[1763129999643,0.10479654,95736.0,95711.0,0.31344275]
[1763129999644,0.00049,95721.0,95711.0,0.20896239]
[1763129999814,0.00049,95721.0,95719.0,0.20894302]
[1763130000040,0.0495,95735.0,95711.0,0.58675016]
[1763130000243,0.04995293,95735.0,95734.0,0.20891219]
[1763130000376,0.00045293,95735.0,95721.0,0.1466]
[1763130000580,0.00045293,95735.0,95734.0,0.20891219]
[1763130001128,0.00045293,95735.0,95725.0,0.58675016]
[1763130001129,0.00094293,95735.0,95725.0,0.58675016]
[1763130001358,0.04995293,95735.0,95720.0,0.58675016]
[1763130001558,0.00049,95722.0,95721.0,0.35553877]
[1763130001765,0.00049,95722.0,95721.0,0.1466]
[1763130002578,0.20895584,95714.0,95713.0,0.1466]
[1763130002797,0.01,95710.0,95708.0,0.20896688]
[1763130003012,0.0504,95717.0,95715.0,0.20895248]
[1763130003206,0.0504,95717.0,95711.0,0.20896138]
[1763130003398,0.0504,95717.0,95702.0,0.20898204]
[1763130003597,0.0504,95717.0,95715.0,0.20895257]
[1763130003949,0.02455,95716.0,95715.0,0.20895257]
[1763130004150,0.02519,95730.0,95724.0,0.2089338]
[1763130004350,0.2089231,95729.0,95718.0,0.20894695]
[1763130004589,0.02456,95711.0,95710.0,0.20896275]
[1763130004968,0.02456,95711.0,95710.0,0.16596275]
[1763130005193,0.02456,95711.0,95710.0,0.20896458]
[1763130006964,0.41773051,95756.0,95725.0,0.20893183]
[1763130006965,0.0495,95726.0,95725.0,0.20893183]
[1763130007168,0.0495,95726.0,95702.0,0.1466]
[1763130007169,0.04999,95726.0,95724.0,0.20893382]
[1763130007380,0.04999,95726.0,95725.0,0.0002728]
[1763130007591,0.0495,95726.0,95725.0,0.0002728]
[1763130007759,0.04999,95726.0,95725.0,0.0002728]
[1763130008220,0.0252,95737.0,95725.0,0.0002728]
[1763130008425,0.0252,95737.0,95726.0,0.20892965]
[1763130008597,0.0252,95737.0,95733.0,0.20891415]
[1763130008974,0.00098,95734.0,95733.0,0.20891415]
[1763130009664,0.0252,95737.0,95733.0,0.20891415]
[1763130010223,0.0495,95760.0,95733.0,0.20891415]
[1763130010577,0.001,95734.0,95733.0,0.20891415]
[1763130010796,0.001,95734.0,95733.0,0.53191415]
[1763130011004,0.00145293,95735.0,95734.0,0.323]
[1763130011421,0.00145293,95735.0,95734.0,0.36641874]
[1763130011645,0.00045293,95735.0,95734.0,2.42149414]
[1763130011920,0.00045293,95735.0,95734.0,2.36641874]
[1763130012233,0.00045293,95735.0,95734.0,2.28941874]
[1763130012801,0.00045293,95735.0,95734.0,0.64580774]
[1763130013071,0.00045293,95735.0,95734.0,0.64584774]
[1763130013471,0.00045293,95735.0,95734.0,0.64484774]
[1763130013880,0.0252,95778.0,95761.0,0.20885329]
[1763130014106,0.42788666,95820.0,95761.0,0.20885329]
[1763130014107,0.00123684,95762.0,95761.0,1.21898383]
[1763130014398,0.10479654,95809.0,95797.0,0.2087748]
[1763130014578,0.02533587,95798.0,95797.0,0.2087748]
[1763130014777,0.02533587,95798.0,95791.0,0.2087869]
[1763130014978,0.02533587,95798.0,95770.0,0.01044168]
[1763130015317,0.02533587,95798.0,95791.0,0.20878674]
[1763130015515,0.02533587,95798.0,95788.0,0.58675016]
[1763130015721,0.01,95780.0,95779.0,0.20881404]
[1763130016017,0.02533587,95798.0,95796.0,0.20877514]
[1763130016727,0.00013587,95798.0,95796.0,0.20877514]
[1763130016931,0.00113587,95798.0,95796.0,0.20877514]
[1763130017309,0.00013587,95798.0,95796.0,0.20877514]
[1763130017538,0.00013587,95798.0,95788.0,0.58675016]
[1763130017539,0.00025,95797.0,95760.0,0.04341874]
[1763130017777,0.00025,95797.0,95720.0,0.01354473]
[1763130017778,0.04916,95769.0,95745.0,3.02e-06]
[1763130017974,0.04916,95769.0,95719.0,0.04997]
[1763130017975,0.28333001,95735.0,95710.0,0.58675016]
[1763130018191,0.28333001,95735.0,95700.0,0.63672016]
[1763130018192,0.60633001,95735.0,95700.0,0.63672016]
[1763130018503,0.41120985,95735.0,95693.0,0.04997]
[1763130018712,0.41120985,95735.0,95720.0,0.58675016]
[1763130018713,0.32495,95734.0,95720.0,0.58675016]
[1763130018844,0.01,95720.0,95717.0,0.20894845]
[1763130019029,0.01,95730.0,95722.0,0.20893715]
[1763130019249,0.323,95732.0,95725.0,0.2089318]
[1763130019445,0.02402,95735.0,95733.0,0.20891272]
[1763130019639,0.02402,95735.0,95727.0,0.20892551]
[1763130019846,0.01,95730.0,95720.0,0.00045293]
[1763130020065,0.20892,95731.0,95722.0,0.20893742]
[1763130020473,0.001,95732.0,95723.0,0.2089362]
[1763130020667,0.31370972,95734.0,95728.0,0.20892483]
[1763130020887,0.02402,95735.0,95729.0,0.22981541]
[1763130021091,0.323,95758.0,95720.0,0.54949716]
[1763130021092,0.0495,95763.0,95730.0,0.03133813]
[1763130021290,0.02639,95746.0,95745.0,0.20888819]
[1763130021928,0.10479654,95770.0,95745.0,0.04997]
[1763130022129,0.02402,95781.0,95769.0,0.20883584]
[1763130022327,0.02402,95781.0,95760.0,0.559487]
[1763130022328,0.02402,95781.0,95779.0,0.20881268]
[1763130022742,0.0495,95780.0,95760.0,0.559487]
[1763130022971,0.0495,95780.0,95755.0,0.20886425]
[1763130022972,0.01,95760.0,95755.0,0.20886425]
[1763130023176,0.2088415,95767.0,95757.0,0.20885984]
[1763130023306,0.002,95770.0,95757.0,6.149e-05]
[1763130023523,0.20884909,95763.0,95757.0,6.149e-05]
[1763130023722,0.0495,95769.0,95757.0,6.149e-05]
[1763130023924,0.00049,95758.0,95757.0,6.149e-05]
[1763130024599,0.00049,95758.0,95757.0,0.14666149]
[1763130025801,0.20934983,95758.0,95757.0,0.14666149]
[1763130026014,0.21034983,95758.0,95757.0,0.14666149]
[1763130026521,0.00249,95758.0,95748.0,0.20888006]
[1763130026734,0.00249,95758.0,95747.0,0.20888236]
[1763130026735,0.10479654,95756.0,95747.0,0.20888236]
[1763130027141,0.10479654,95756.0,95751.0,0.20887396]
[1763130027348,0.10479654,95756.0,95752.0,0.20887175]
[1763130027589,0.00098,95752.0,95749.0,0.20887805]
[1763130027936,0.0495,95750.0,95748.0,0.20888164]
[1763130028119,0.0495,95750.0,95749.0,0.20887946]
[1763130028575,0.0495,95750.0,95744.0,0.06866149]
[1763130028799,0.0495,95750.0,95747.0,0.06866149]
[1763130028800,0.20888164,95748.0,95747.0,0.06866149]
[1763130029014,0.20888164,95748.0,95720.0,0.54904423]
[1763130029015,0.0504,95749.0,95731.0,0.06866149]
[1763130029252,0.10479654,95739.0,95731.0,0.06866149]
[1763130029464,0.10479654,95739.0,95734.0,0.20891071]
[1763130029687,0.10479654,95739.0,95736.0,0.20890638]
[1763130030116,0.0005,95732.0,95731.0,0.06866149]
[1763130031440,0.001,95739.0,95738.0,0.20890346]
[1763130031619,0.002,95739.0,95738.0,0.20890346]
[1763130031822,0.001,95739.0,95738.0,0.20890346]
[1763130032318,0.01,95740.0,95738.0,0.20890346]
[1763130032510,0.01,95740.0,95739.0,0.02089012]
[1763130032788,0.01,95740.0,95738.0,0.20890346]
[1763130033007,0.05015,95752.0,95740.0,0.20889784]
[1763130033149,0.05015,95752.0,95746.0,0.20888451]
[1763130033349,0.00013581,95758.0,95747.0,0.06866149]
[1763130033555,0.00013581,95758.0,95740.0,0.20889784]
[1763130033759,0.00013581,95758.0,95747.0,0.20888382]
[1763130034380,0.02672,95748.0,95747.0,0.20888382]
[1763130034997,0.02722,95748.0,95730.0,0.54904423]
[1763130035158,0.05016,95747.0,95730.0,0.54904423]
[1763130035366,0.25904555,95747.0,95741.0,0.20889484]
[1763130035803,0.0005,95742.0,95741.0,0.20889484]
[1763130036205,0.0005,95742.0,95740.0,0.20889773]
[1763130036410,0.20888729,95746.0,95741.0,0.20889628]
[1763130036625,0.00099,95740.0,95739.0,0.20890024]
[1763130036860,0.20988959,95740.0,95732.0,0.20891655]
[1763130037047,0.20988959,95740.0,95730.0,0.54904423]
[1763130037048,0.21890068,95740.0,95730.0,0.54904423]
[1763130037254,0.20890194,95739.0,95730.0,0.54904423]
[1763130037488,0.20890068,95740.0,95735.0,0.20890911]
[1763130037692,0.20890068,95740.0,95734.0,0.20891041]
[1763130037693,0.01,95740.0,95720.0,0.55949136]
[1763130037865,0.0005,95731.0,95729.0,0.20892101]
[1763130038281,0.01,95740.0,95730.0,0.00131194]
[1763130038486,0.20888422,95747.0,95739.0,0.20890128]
[1763130038686,0.20888422,95747.0,95738.0,0.20890295]
[1763130038687,0.01,95740.0,95738.0,0.20890295]
[1763130038895,0.001,95740.0,95739.0,0.20889911]
[1763130039306,0.05015,95747.0,95746.0,0.20888601]
[1763130039518,0.05015,95747.0,95741.0,0.20889602]
[1763130039519,0.25903419,95747.0,95741.0,0.20889602]
[1763130039848,0.0005,95731.0,95729.0,0.2089231]
[1763130040602,0.0005,95731.0,95729.0,0.1309231]
[1763130040802,0.04966,95739.0,95732.0,0.20891554]
[1763130040803,0.25856218,95739.0,95732.0,0.20891554]
[1763130041211,0.00099,95733.0,95720.0,0.01044713]
[1763130041412,0.01988376,95730.0,95720.0,0.01044713]
[1763130041613,0.01,95730.0,95727.0,0.20892672]
[1763130041773,0.01,95730.0,95720.0,0.55949136]
[1763130041979,0.01,95730.0,95720.0,0.01044713]
[1763130042175,0.001,95731.0,95729.0,0.2089231]
[1763130042386,0.10479654,95736.0,95733.0,0.20891251]
[1763130042598,0.10479654,95736.0,95735.0,0.20891001]
[1763130042978,0.10479654,95736.0,95720.0,0.55949136]
[1763130043148,0.20891271,95734.0,95729.0,0.2089231]
[1763130043293,0.20891271,95734.0,95730.0,0.20892066]
[1763130043499,0.20891261,95734.0,95730.0,0.20892066]
[1763130043699,0.00034,95731.0,95730.0,0.20892066]
[1763130044129,0.00034,95731.0,95730.0,0.2102326]
[1763130044543,0.00034,95731.0,95730.0,0.00131194]
[1763130044778,0.00034,95731.0,95730.0,0.21023286]
[1763130044926,0.00034,95731.0,95720.0,0.55949136]
[1763130044927,0.01044713,95720.0,95697.0,0.05515953]
[1763130045276,0.07443,95698.0,95697.0,0.20899296]
[1763130045612,0.02403,95698.0,95697.0,0.20899296]
[1763130046013,0.02403,95698.0,95697.0,0.20944589]
[1763130047528,0.07417,95698.0,95697.0,0.20944589]
[1763130047767,0.07417,95698.0,95697.0,0.13144589]
[1763130048158,0.02403,95698.0,95697.0,0.13144589]
[1763130048569,0.07367,95698.0,95697.0,0.13144589]
[1763130049978,0.07367,95698.0,95697.0,0.00045293]
[1763130050552,0.07367,95698.0,95697.0,0.00135348]
[1763130050917,0.07367,95698.0,95697.0,0.14795348]
[1763130051106,0.07367,95698.0,95697.0,0.14799348]
[1763130051643,0.07467,95698.0,95697.0,0.14803348]
[1763130052443,0.07567,95698.0,95697.0,0.14807348]
[1763130054976,0.07567,95698.0,95697.0,0.20911296]
[1763130055187,0.28466078,95698.0,95697.0,0.00012]
[1763130055386,0.21889332,95690.0,95683.0,0.2090232]
[1763130055594,0.10479654,95685.0,95684.0,0.20902042]
[1763130055801,0.13050654,95685.0,95684.0,0.20902042]
[1763130056210,0.13050654,95685.0,95683.0,0.00013602]
[1763130056416,0.05511321,95684.0,95661.0,0.20907161]
[1763130056618,0.0504,95662.0,95661.0,0.00013594]
[1763130056821,0.07611,95662.0,95661.0,0.20920755]
[1763130058255,0.07611,95662.0,95661.0,0.00013594]
[1763130061180,0.07711,95662.0,95661.0,0.00013594]
[1763130061596,0.07711,95662.0,95661.0,0.0011189]
[1763130061801,0.40011,95662.0,95661.0,0.0011189]
[1763130062231,0.40011,95662.0,95640.0,0.0004]
[1763130062232,0.0499,95648.0,95640.0,0.0004]
[1763130062439,0.04966,95641.0,95640.0,0.0004]
[1763130062644,0.04966,95641.0,95640.0,0.20951752]
[1763130062851,0.05015,95657.0,95656.0,0.20908254]
[1763130063064,0.02671,95662.0,95661.0,0.20907161]
[1763130063293,0.02107093,95668.0,95667.0,0.2090585]
[1763130063448,0.01,95670.0,95669.0,0.20905413]
[1763130063656,0.04467,95691.0,95690.0,0.20900825]
[1763130063868,0.04480579,95691.0,95681.0,0.88125272]
[1763130064065,0.00045,95682.0,95681.0,0.88125272]
[1763130064224,0.00045,95682.0,95680.0,0.20902815]
[1763130064634,0.10479654,95689.0,95672.0,0.88125272]
[1763130064635,0.10479654,95689.0,95688.0,0.20901262]
[1763130064857,0.10479654,95689.0,95679.0,0.88125272]
[1763130065118,0.04467,95688.0,95670.0,0.89170531]
[1763130065322,0.20901699,95686.0,95676.0,0.20903701]
[1763130065524,0.20902293,95684.0,95677.0,0.20903557]
[1763130065728,0.00013579,95691.0,95690.0,0.20900825]
[1763130066185,0.00058579,95691.0,95690.0,0.20900825]
[1763130066814,0.20901044,95689.0,95682.0,0.20902384]
[1763130067043,0.001,95688.0,95682.0,0.20902384]
[1763130067225,0.04423,95683.0,95682.0,0.20902384]
[1763130067889,0.00117654,95688.0,95687.0,0.2090148]
[1763130068350,0.00162654,95688.0,95680.0,0.2090301]
[1763130068558,0.04467,95681.0,95678.0,0.88125272]
[1763130068777,0.04467,95687.0,95685.0,0.20901812]
[1763130069160,0.00117654,95688.0,95685.0,0.20901812]
[1763130069161,0.00045,95686.0,95685.0,0.13201812]
[1763130070017,0.00117654,95688.0,95687.0,0.2090148]
[1763130070207,0.00117654,95688.0,95687.0,0.5320148]
[1763130070616,0.00117654,95688.0,95676.0,0.88125272]
[1763130070737,0.00117654,95688.0,95687.0,0.2090148]
[1763130071639,0.00117654,95688.0,95687.0,0.5330148]
[1763130073100,0.00117654,95688.0,95687.0,0.5320148]
[1763130073704,0.00117654,95688.0,95687.0,0.5330148]
[1763130073908,0.00117654,95688.0,95687.0,0.2090148]
[1763130074111,0.00117654,95688.0,95687.0,0.2100148]
[1763130074285,0.00117654,95688.0,95687.0,0.2110548]
[1763130074690,0.00162654,95688.0,95687.0,0.00208]
[1763130075127,0.00162654,95688.0,95687.0,0.00212]
[1763130075560,0.00117654,95688.0,95687.0,0.00212]
[1763130075765,0.00117654,95688.0,95687.0,0.32512]
[1763130075926,0.00117654,95688.0,95687.0,0.32312]
[1763130076230,0.00117654,95688.0,95686.0,0.20901586]
[1763130076852,0.00117654,95688.0,95687.0,0.001]
[1763130077056,0.00117654,95688.0,95687.0,0.09607]
[1763130077221,0.00117654,95688.0,95687.0,0.16502348]
[1763130077586,0.00117654,95688.0,95687.0,0.16402348]
[1763130077788,0.00117654,95688.0,95687.0,0.09085496]
[1763130077925,0.00117654,95688.0,95687.0,0.05945591]
[1763130078127,0.02339,95705.0,95704.0,0.20897768]
[1763130078333,0.06869,95705.0,95704.0,0.03855443]
[1763130078548,0.06914,95705.0,95704.0,0.03855443]
[1763130079369,0.02384,95705.0,95704.0,0.03855443]
[1763130080395,0.02384,95705.0,95695.0,0.88125272]
[1763130080588,0.04486,95696.0,95681.0,0.07915206]
[1763130080888,0.04442,95682.0,95681.0,0.00013579]
[1763130081888,0.20899546,95696.0,95691.0,0.20900518]
[1763130082090,0.00045,95682.0,95681.0,0.00013579]
[1763130083048,0.15009654,95700.0,95695.0,0.20899652]
[1763130083211,0.15009654,95700.0,95696.0,0.20899349]
[1763130083428,0.00045,95696.0,95692.0,0.20900304]
[1763130083613,0.00045,95696.0,95690.0,0.88125272]
[1763130083614,0.00045,95694.0,95690.0,0.88125272]
[1763130083910,0.20899468,95697.0,95690.0,0.88125272]
[1763130084098,0.20901077,95689.0,95681.0,0.00013579]
[1763130084309,0.00045,95691.0,95681.0,0.00013579]
[1763130084517,0.00045,95682.0,95681.0,0.00013579]
[1763130085397,0.06320167,95682.0,95681.0,0.00013579]
[1763130085610,0.00045,95682.0,95681.0,0.00013579]
[1763130086886,0.32345,95682.0,95681.0,0.00013579]
[1763130087351,0.32345,95682.0,95640.0,0.01085587]
[1763130087352,0.04341874,95681.0,95640.0,0.0004]
[1763130087575,0.06658,95641.0,95640.0,0.0004]
[1763130089314,0.06758,95641.0,95640.0,0.0004]
[1763130089733,0.06758,95641.0,95640.0,0.00215047]
[1763130089902,0.06858,95641.0,95640.0,0.00215047]
[1763130091349,0.27769533,95641.0,95640.0,0.00215047]
[1763130091556,0.68236326,95641.0,95640.0,4.7e-07]
[1763130091765,0.2091372,95631.0,95630.0,0.0004]
[1763130091931,0.2093672,95631.0,95630.0,0.00053609]
[1763130092133,0.31416374,95631.0,95630.0,0.00053609]
[1763130092599,0.25257781,95621.0,95620.0,0.0004]
[1763130092798,0.25322781,95621.0,95620.0,0.00045403]
[1763130093011,0.25322781,95621.0,95610.0,0.0004]
[1763130093012,0.20917562,95614.0,95610.0,0.0004]
[1763130093219,0.33779749,95611.0,95610.0,0.0004]
[1763130093678,0.12861654,95611.0,95610.0,0.0004]
[1763130094285,0.12861654,95611.0,95610.0,0.20958313]
[1763130094493,0.02382,95611.0,95610.0,0.20958313]
[1763130094697,0.02337,95611.0,95610.0,0.20958313]
[1763130095109,0.00045291,95614.0,95613.0,0.20917657]
[1763130096183,0.00045291,95614.0,95613.0,0.53217657]
[1763130097588,0.00045291,95614.0,95613.0,0.55098657]
[1763130097774,0.00045291,95614.0,95613.0,0.55172438]
[1763130097978,0.00045291,95614.0,95613.0,0.67923438]
[1763130098182,0.00045291,95614.0,95613.0,0.55272438]
[1763130098379,0.00045291,95614.0,95613.0,0.55372438]
[1763130098835,0.00045291,95614.0,95613.0,0.13391438]
[1763130099588,0.00045291,95614.0,95613.0,1.25530503]
[1763130099794,0.00045291,95614.0,95613.0,0.73338738]
[1763130100134,0.00045291,95614.0,95613.0,0.73438738]
[1763130100542,0.00045291,95614.0,95613.0,0.73338738]
[1763130100864,0.00045291,95614.0,95613.0,0.73438738]
[1763130101077,0.323,95660.0,95613.0,0.73438738]
[1763130101251,0.00013589,95660.0,95659.0,0.20907598]
[1763130101632,0.00058589,95660.0,95650.0,0.88125272]
[1763130101910,0.00058589,95660.0,95638.0,0.20911988]
[1763130101911,0.01,95640.0,95638.0,0.20911988]
[1763130102098,0.01,95640.0,95639.0,0.20911971]
[1763130102297,0.02171,95641.0,95639.0,0.20911971]
[1763130102748,0.01033376,95640.0,95630.0,0.88125272]
[1763130102968,0.02171,95641.0,95640.0,0.20911752]
[1763130103176,0.02171,95644.0,95640.0,0.20911705]
[1763130103366,0.02171,95644.0,95643.0,0.20911096]
[1763130103577,0.01158958,95660.0,95654.0,0.20908657]
[1763130103578,0.20907689,95659.0,95654.0,0.20908657]
[1763130103758,0.01001965,95660.0,95649.0,0.88125272]
[1763130103989,0.21909373,95660.0,95656.0,0.20908212]
[1763130104296,0.21909373,95660.0,95654.0,0.2090853]
[1763130104297,0.20907863,95658.0,95654.0,0.2090853]
[1763130104619,0.20908729,95654.0,95650.0,0.13109563]
[1763130105006,0.00045,95655.0,95652.0,0.20908965]
[1763130105195,0.20908302,95656.0,95651.0,0.20909293]
[1763130105405,0.04423,95651.0,95640.0,0.20911649]
[1763130105632,0.20911533,95641.0,95640.0,0.88125272]
[1763130105778,0.20911533,95641.0,95630.0,0.88125272]
[1763130105779,0.02193,95641.0,95630.0,0.88125272]
[1763130105982,0.20913565,95632.0,95630.0,0.88125272]
[1763130106178,0.20913565,95632.0,95631.0,0.03855443]
[1763130106622,0.27574565,95632.0,95631.0,0.00024589]
[1763130108026,0.06661,95632.0,95610.0,0.88165272]
[1763130108209,0.04528,95611.0,95610.0,0.0004]
[1763130111010,0.04628,95611.0,95610.0,0.0004]
[1763130112029,0.04628,95611.0,95600.0,0.60208197]
[1763130112030,0.00988376,95610.0,95602.0,0.20920064]
[1763130112230,0.00988376,95610.0,95600.0,0.60208197]
[1763130112618,0.001,95611.0,95610.0,0.323]
[1763130112818,0.001,95611.0,95610.0,0.38732]
[1763130113015,0.001,95611.0,95610.0,1.185764]
[1763130113372,0.04552,95657.0,95655.0,0.20908318]
[1763130113575,0.00013587,95657.0,95655.0,0.20908318]
[1763130115084,0.00013587,95657.0,95656.0,0.323]
[1763130115584,0.00013587,95657.0,95656.0,0.53208254]
[1763130117926,0.00013587,95657.0,95656.0,0.53308254]
[1763130118704,0.00013587,95657.0,95656.0,0.21008254]
[1763130119151,0.00013587,95657.0,95656.0,0.16708254]
[1763130121426,0.00013587,95657.0,95655.0,0.323]
[1763130121427,0.00013587,95657.0,95655.0,0.20908469]
[1763130121798,0.00013587,95657.0,95655.0,0.53208469]
[1763130122046,0.00013587,95657.0,95656.0,0.41955]
[1763130122454,0.01044822,95710.0,95656.0,0.41955]
[1763130122455,0.10479654,95736.0,95681.0,0.20902791]
[1763130122655,0.10479654,95736.0,95721.0,0.20894056]
[1763130122656,0.02427366,95722.0,95721.0,0.20894056]
[1763130123075,0.02427366,95722.0,95718.0,0.20894591]
[1763130123282,0.04631,95719.0,95711.0,0.323]
[1763130123482,0.04631,95719.0,95717.0,0.20894814]
[1763130123700,0.04631,95719.0,95710.0,0.60208197]
[1763130123898,0.00988376,95710.0,95701.0,0.323]
[1763130124131,0.00988376,95710.0,95680.0,1.13870655]
[1763130124132,0.0032,95702.0,95680.0,0.0585715]
[1763130124336,0.20898859,95699.0,95681.0,0.323]
[1763130124541,0.10479654,95706.0,95690.0,0.60208197]
[1763130124542,0.20899844,95695.0,95690.0,0.60208197]
[1763130124747,0.20898894,95699.0,95690.0,0.60208197]
[1763130124945,0.00988376,95700.0,95695.0,0.20899733]
[1763130125146,0.20899296,95697.0,95690.0,0.81108915]
[1763130125365,0.20899863,95695.0,95690.0,0.81108915]
[1763130125736,0.20899296,95697.0,95691.0,0.20900393]
[1763130125880,0.001,95699.0,95697.0,0.20899251]
[1763130126287,0.20899187,95698.0,95692.0,0.20900252]
[1763130126487,0.001,95699.0,95690.0,0.60208197]
[1763130126684,0.001,95700.0,95690.0,0.60208197]
[1763130126884,0.01088376,95700.0,95690.0,0.60208197]
[1763130127095,0.20898973,95699.0,95694.0,0.20899859]
[1763130127295,0.20897123,95707.0,95690.0,0.60208197]
[1763130127520,0.20900369,95693.0,95690.0,0.60208197]
[1763130127735,0.001,95699.0,95690.0,0.60208197]
[1763130127937,0.001,95699.0,95697.0,0.2089921]
[1763130128174,0.001,95699.0,95698.0,0.20899078]
[1763130128513,0.00476917,95699.0,95689.0,0.60208197]
[1763130128720,0.00476917,95699.0,95680.0,0.60208197]
[1763130128721,0.2090187,95686.0,95680.0,0.60208197]
[1763130128983,0.00988376,95690.0,95680.0,0.60208197]
[1763130129181,0.21889333,95690.0,95686.0,0.20901635]
[1763130129340,0.21889333,95690.0,95663.0,0.31359952]
[1763130129341,0.00013604,95699.0,95660.0,0.01045369]
[1763130129539,0.00013604,95699.0,95631.0,0.00117719]
[1763130129540,0.20904811,95672.0,95670.0,0.60208197]
[1763130129740,0.00988376,95670.0,95660.0,0.60208197]
[1763130130042,0.00988376,95670.0,95669.0,0.20905413]
[1763130130349,0.00988376,95670.0,95643.0,0.04647]
[1763130130350,0.05619376,95670.0,95643.0,0.04647]
[1763130130494,0.05619376,95670.0,95640.0,0.01045587]
[1763130130495,0.00988376,95660.0,95650.0,0.60208197]
[1763130130653,0.02361,95641.0,95631.0,0.00117719]
[1763130130854,0.02361,95641.0,95638.0,0.20912066]
[1763130131126,0.02361,95641.0,95638.0,0.323]
[1763130131332,0.02361,95641.0,95631.0,0.60339503]
[1763130131333,0.04631,95639.0,95631.0,0.60339503]
[1763130131495,0.00988376,95640.0,95638.0,0.20912189]
[1763130131680,0.02361,95641.0,95640.0,0.20911752]
[1763130132722,0.10479654,95655.0,95654.0,0.20908691]
[1763130133079,0.10479654,95669.0,95645.0,0.60208197]
[1763130133355,0.20907589,95660.0,95653.0,0.20908803]
[1763130133489,0.00988376,95660.0,95640.0,0.01045587]
[1763130133702,0.00988376,95660.0,95658.0,0.20907621]
[1763130133907,0.10479654,95669.0,95667.0,0.20905741]
[1763130134125,0.31385196,95669.0,95664.0,0.20906367]
[1763130134394,0.00365,95665.0,95664.0,0.20906356]